[Event "IIe Tournoi de GMI du C'Chartres Echecs"]
[Site "Chartres, France"]
[Date "2021.05.20"]
[Round "8.1"]
[White "Dgebuadze, Alexandre"]
[Black "Shirazi, Kamran"]
[Result "1-0"]
[TimeControl "5400+30"]
[WhiteTitle "GM"]
[BlackTitle "IM"]
[WhiteElo "2490"]
[BlackElo "2349"]

1. e4 {[%clk 01:30:39]} {[%emt 00:00:20]} c5 {[%clk 01:29:49]} {[%emt
00:01:11]} 2. Nc3 {[%clk 01:30:58]} {[%emt 00:00:11]} Nf6 {[%clk 01:28:20]}
{[%emt 00:01:59]} 3. e5 {[%clk 01:23:55]} {[%emt 00:07:34]} Ng8 {[%clk
01:28:47]} {[%emt 00:00:03]} 4. Nf3 {[%clk 01:24:17]} {[%emt 00:00:09]} Nc6
{[%clk 01:28:54]} {[%emt 00:00:22]} 5. d4 {[%clk 01:23:59]} {[%emt 00:00:48]}
cxd4 {[%clk 01:29:03]} {[%emt 00:00:21]} 6. Nxd4 {[%clk 01:17:02]} {[%emt
00:07:27]} Nxe5 {[%clk 01:29:12]} {[%emt 00:00:21]} 7. Bf4 {[%clk 01:17:20]}
{[%emt 00:00:13]} d6 {[%clk 01:21:01]} {[%emt 00:08:41]} 8. Bb5+ {[%clk
01:17:06]} {[%emt 00:00:43]} Nd7 {[%clk 01:17:34]} {[%emt 00:03:57]} 9. Qe2
{[%clk 01:15:07]} {[%emt 00:02:28]} e5 {[%clk 01:14:21]} {[%emt 00:03:44]} 10.
Nf5 {[%clk 01:12:09]} {[%emt 00:03:27]} f6 {[%clk 01:12:38]} {[%emt 00:02:14]}
11. Qc4 {[%clk 01:08:55]} {[%emt 00:03:44]} Qa5 {[%clk 01:04:33]} {[%emt
00:08:35]} 12. b4 {[%clk 01:03:30]} {[%emt 00:05:55]} d5 {[%clk 01:03:27]}
{[%emt 00:01:36]} 13. Nxd5 {[%clk 01:03:30]} {[%emt 00:00:29]} Bxb4+ {[%clk
01:03:45]} {[%emt 00:00:13]} 14. Nxb4 {[%clk 01:02:33]} {[%emt 00:01:26]} exf4
{[%clk 01:03:49]} {[%emt 00:00:26]} 15. O-O-O {[%clk 01:02:06]} {[%emt
00:00:56]} Nh6 {[%clk 01:03:03]} {[%emt 00:01:15]} 16. Qe6+ {[%clk 01:01:13]}
{[%emt 00:01:23]} Kd8 {[%clk 01:02:59]} {[%emt 00:00:34]} 17. Rxd7+ {[%clk
01:01:25]} {[%emt 00:00:19]} 1-0

[Event "IIe Tournoi de GMI du C'Chartres Echecs"]
[Site "Chartres, France"]
[Date "2021.05.20"]
[Round "8.2"]
[White "Vlachos, Anatole"]
[Black "Flear, Glenn"]
[Result "0-1"]
[TimeControl "5400+30"]
[WhiteTitle "IM"]
[BlackTitle "GM"]
[WhiteElo "2438"]
[BlackElo "2431"]

1. e4 {[%clk 01:30:58]} {[%emt 00:00:02]} e5 {[%clk 01:30:45]} {[%emt
00:00:15]} 2. Nf3 {[%clk 01:31:23]} {[%emt 00:00:05]} Nc6 {[%clk 01:31:09]}
{[%emt 00:00:06]} 3. Bc4 {[%clk 01:31:49]} {[%emt 00:00:04]} Bc5 {[%clk
01:30:02]} {[%emt 00:01:37]} 4. c3 {[%clk 01:32:12]} {[%emt 00:00:06]} Nf6
{[%clk 01:30:24]} {[%emt 00:00:07]} 5. d4 {[%clk 01:32:38]} {[%emt 00:00:04]}
exd4 {[%clk 01:30:35]} {[%emt 00:00:19]} 6. b4 {[%clk 01:33:04]} {[%emt
00:00:05]} Bb6 {[%clk 01:24:50]} {[%emt 00:06:14]} 7. e5 {[%clk 01:33:27]}
{[%emt 00:00:08]} d5 {[%clk 01:24:00]} {[%emt 00:01:20]} 8. exf6 {[%clk
01:33:34]} {[%emt 00:00:23]} dxc4 {[%clk 01:24:21]} {[%emt 00:00:08]} 9. Qe2+
{[%clk 01:33:54]} {[%emt 00:00:10]} Be6 {[%clk 01:22:53]} {[%emt 00:01:58]} 10.
b5 {[%clk 01:34:22]} {[%emt 00:00:02]} d3 {[%clk 01:15:27]} {[%emt 00:07:56]}
11. Qe4 {[%clk 01:34:50]} {[%emt 00:00:02]} Nb4 {[%clk 01:06:08]} {[%emt
00:09:49]} 12. fxg7 {[%clk 01:34:28]} {[%emt 00:00:51]} Nc2+ {[%clk 01:04:44]}
{[%emt 00:01:54]} 13. Kd1 {[%clk 01:25:02]} {[%emt 00:09:56]} Rg8 {[%clk
01:04:32]} {[%emt 00:00:42]} 14. Bg5 {[%clk 00:48:43]} {[%emt 00:36:50]} Qd5
{[%clk 01:00:02]} {[%emt 00:04:59]} 15. Qxh7 {[%clk 00:48:44]} {[%emt
00:00:29]} Kd7 {[%clk 00:58:34]} {[%emt 00:01:59]} 16. Nbd2 {[%clk 00:32:35]}
{[%emt 00:16:39]} Bf5 {[%clk 00:35:33]} {[%emt 00:23:32]} 17. Qh6 {[%clk
00:22:48]} {[%emt 00:10:16]} Rae8 {[%clk 00:32:21]} {[%emt 00:03:43]} 18. Rb1
{[%clk 00:22:18]} {[%emt 00:01:00]} Bxf2 {[%clk 00:32:05]} {[%emt 00:00:45]} 19.
Qf6 {[%clk 00:18:31]} {[%emt 00:04:17]} Kc8 {[%clk 00:28:26]} {[%emt 00:04:09]}
20. Nh4 {[%clk 00:11:56]} {[%emt 00:07:05]} Bxh4 {[%clk 00:19:49]} {[%emt
00:09:08]} 21. Bxh4 {[%clk 00:12:24]} {[%emt 00:00:02]} Re6 {[%clk 00:19:08]}
{[%emt 00:01:11]} 22. Qg5 {[%clk 00:12:19]} {[%emt 00:00:34]} Rg6 {[%clk
00:19:12]} {[%emt 00:00:27]} 23. Qf4 {[%clk 00:11:24]} {[%emt 00:01:25]} Rg4
{[%clk 00:16:42]} {[%emt 00:03:00]} 24. Qf2 {[%clk 00:11:32]} {[%emt 00:00:21]}
Rxh4 {[%clk 00:13:57]} {[%emt 00:03:16]} 25. Kc1 {[%clk 00:05:14]} {[%emt
00:06:49]} Rg4 {[%clk 00:13:03]} {[%emt 00:01:23]} 26. Rf1 {[%clk 00:05:12]}
{[%emt 00:00:32]} Be6 {[%clk 00:11:59]} {[%emt 00:01:34]} 27. Qxa7 {[%clk
00:05:35]} {[%emt 00:00:08]} b6 {[%clk 00:11:34]} {[%emt 00:00:55]} 28. g3
{[%clk 00:05:31]} {[%emt 00:00:34]} R8xg7 {[%clk 00:10:59]} {[%emt 00:01:05]}
29. Kb2 {[%clk 00:05:59]} {[%emt 00:00:02]} Rg8 {[%clk 00:09:51]} {[%emt
00:01:38]} 30. Nf3 {[%clk 00:05:00]} {[%emt 00:01:29]} Kd7 {[%clk 00:09:32]}
{[%emt 00:00:50]} 0-1

[Event "IIe Tournoi de GMI du C'Chartres Echecs"]
[Site "Chartres, France"]
[Date "2021.05.20"]
[Round "8.3"]
[White "Maurizzi, Marc Andria"]
[Black "Loiseau, Quentin"]
[Result "1-0"]
[TimeControl "5400+30"]
[WhiteTitle "IM"]
[BlackTitle "IM"]
[WhiteElo "2489"]
[BlackElo "2455"]

1. e4 {[%clk 01:30:49]} {[%emt 00:00:10]} c5 {[%clk 01:30:26]} {[%emt
00:00:35]} 2. Nf3 {[%clk 01:30:44]} {[%emt 00:00:35]} Nc6 {[%clk 01:30:52]}
{[%emt 00:00:04]} 3. Bb5 {[%clk 01:30:56]} {[%emt 00:00:18]} Nf6 {[%clk
01:31:11]} {[%emt 00:00:10]} 4. Nc3 {[%clk 01:29:13]} {[%emt 00:02:12]} g6
{[%clk 01:31:10]} {[%emt 00:00:31]} 5. O-O {[%clk 01:28:03]} {[%emt 00:01:40]}
Bg7 {[%clk 01:31:03]} {[%emt 00:00:38]} 6. e5 {[%clk 01:28:05]} {[%emt
00:00:28]} Ng4 {[%clk 01:30:56]} {[%emt 00:00:37]} 7. Bxc6 {[%clk 01:27:54]}
{[%emt 00:00:41]} dxc6 {[%clk 01:28:08]} {[%emt 00:03:18]} 8. Re1 {[%clk
01:27:46]} {[%emt 00:00:38]} O-O {[%clk 01:22:26]} {[%emt 00:06:12]} 9. d3
{[%clk 01:25:14]} {[%emt 00:03:02]} b6 {[%clk 01:18:43]} {[%emt 00:04:13]} 10.
Bf4 {[%clk 01:22:34]} {[%emt 00:03:09]} Nh6 {[%clk 01:18:20]} {[%emt 00:00:54]}
11. Ne4 {[%clk 01:21:42]} {[%emt 00:01:21]} Ba6 {[%clk 01:08:42]} {[%emt
00:10:09]} 12. e6 {[%clk 01:11:26]} {[%emt 00:10:45]} f6 {[%clk 01:05:32]}
{[%emt 00:03:42]} 13. h4 {[%clk 01:04:21]} {[%emt 00:07:34]} Nf5 {[%clk
01:03:31]} {[%emt 00:02:30]} 14. c4 {[%clk 01:03:55]} {[%emt 00:00:56]} Nd4
{[%clk 01:00:16]} {[%emt 00:03:45]} 15. Ng3 {[%clk 01:00:45]} {[%emt 00:03:41]}
Qc8 {[%clk 00:50:05]} {[%emt 00:10:40]} 16. Nxd4 {[%clk 00:56:21]} {[%emt
00:04:54]} cxd4 {[%clk 00:50:34]} {[%emt 00:00:01]} 17. h5 {[%clk 00:55:05]}
{[%emt 00:01:45]} f5 {[%clk 00:49:39]} {[%emt 00:01:24]} 18. Qd2 {[%clk
00:43:13]} {[%emt 00:12:23]} c5 {[%clk 00:45:00]} {[%emt 00:05:09]} 19. hxg6
{[%clk 00:41:41]} {[%emt 00:02:02]} hxg6 {[%clk 00:45:25]} {[%emt 00:00:04]} 20.
Be5 {[%clk 00:37:41]} {[%emt 00:04:30]} Bf6 {[%clk 00:25:14]} {[%emt 00:20:42]}
21. Qh6 {[%clk 00:29:44]} {[%emt 00:08:26]} Qe8 {[%clk 00:25:15]} {[%emt
00:00:29]} 22. f4 {[%clk 00:29:56]} {[%emt 00:00:18]} Bxe5 {[%clk 00:21:50]}
{[%emt 00:03:55]} 23. fxe5 {[%clk 00:26:44]} {[%emt 00:03:42]} Bc8 {[%clk
00:19:26]} {[%emt 00:02:54]} 24. Kf2 {[%clk 00:26:53]} {[%emt 00:00:20]} 1-0

[Event "IIe Tournoi de GMI du C'Chartres Echecs"]
[Site "Chartres, France"]
[Date "2021.05.20"]
[Round "8.4"]
[White "Duboue, Peio"]
[Black "Stephan, Victor"]
[Result "1/2-1/2"]
[TimeControl "5400+30"]
[WhiteTitle "FM"]
[BlackTitle "IM"]
[WhiteElo "2431"]
[BlackElo "2430"]

1. e4 {[%clk 01:30:57]} {[%emt 00:00:02]} e5 {[%clk 01:30:49]} {[%emt
00:00:11]} 2. Nf3 {[%clk 01:30:00]} {[%emt 00:01:28]} Nf6 {[%clk 01:31:08]}
{[%emt 00:00:11]} 3. Nc3 {[%clk 01:30:25]} {[%emt 00:00:06]} Nc6 {[%clk
01:31:20]} {[%emt 00:00:17]} 4. d4 {[%clk 01:26:42]} {[%emt 00:04:13]} exd4
{[%clk 01:31:31]} {[%emt 00:00:18]} 5. Nxd4 {[%clk 01:26:49]} {[%emt 00:00:23]}
Bb4 {[%clk 01:31:23]} {[%emt 00:00:38]} 6. Nxc6 {[%clk 01:27:12]} {[%emt
00:00:07]} bxc6 {[%clk 01:31:46]} {[%emt 00:00:07]} 7. Bd3 {[%clk 01:27:40]}
{[%emt 00:00:03]} d5 {[%clk 01:31:58]} {[%emt 00:00:17]} 8. exd5 {[%clk
01:28:01]} {[%emt 00:00:08]} O-O {[%clk 01:32:15]} {[%emt 00:00:12]} 9. O-O
{[%clk 01:28:22]} {[%emt 00:00:10]} cxd5 {[%clk 01:32:36]} {[%emt 00:00:09]} 10.
Bg5 {[%clk 01:25:44]} {[%emt 00:03:07]} c6 {[%clk 01:32:41]} {[%emt 00:00:26]}
11. Qf3 {[%clk 01:26:08]} {[%emt 00:00:06]} h6 {[%clk 01:31:43]} {[%emt
00:01:28]} 12. Bxf6 {[%clk 01:26:33]} {[%emt 00:00:05]} Qxf6 {[%clk 01:32:05]}
{[%emt 00:00:07]} 13. Qxf6 {[%clk 01:27:01]} {[%emt 00:00:02]} gxf6 {[%clk
01:32:25]} {[%emt 00:00:10]} 14. Ne2 {[%clk 01:27:19]} {[%emt 00:00:12]} Re8
{[%clk 01:26:13]} {[%emt 00:06:43]} 15. Nd4 {[%clk 01:25:27]} {[%emt 00:02:22]}
c5 {[%clk 01:25:10]} {[%emt 00:01:33]} 16. a3 {[%clk 01:11:57]} {[%emt
00:14:00]} Ba5 {[%clk 01:20:54]} {[%emt 00:04:45]} 17. Bb5 {[%clk 01:08:46]}
{[%emt 00:03:41]} Rd8 {[%clk 01:13:18]} {[%emt 00:08:06]} 18. Nc6 {[%clk
01:08:43]} {[%emt 00:00:33]} Bd7 {[%clk 01:13:09]} {[%emt 00:00:39]} 19. Nxd8
{[%clk 01:06:01]} {[%emt 00:03:12]} Bxb5 {[%clk 01:13:24]} {[%emt 00:00:14]} 20.
Nb7 {[%clk 01:06:28]} {[%emt 00:00:03]} Bxf1 {[%clk 01:12:57]} {[%emt
00:00:57]} 21. Kxf1 {[%clk 00:59:23]} {[%emt 00:07:36]} Bb6 {[%clk 01:12:05]}
{[%emt 00:01:21]} 22. Nd6 {[%clk 00:57:36]} {[%emt 00:02:17]} Bc7 {[%clk
01:07:22]} {[%emt 00:05:13]} 23. Nf5 {[%clk 00:57:06]} {[%emt 00:01:00]} Be5
{[%clk 01:06:22]} {[%emt 00:01:30]} 24. Rb1 {[%clk 00:57:23]} {[%emt 00:00:14]}
Kh7 {[%clk 01:04:19]} {[%emt 00:02:33]} 25. Ne3 {[%clk 00:56:27]} {[%emt
00:01:25]} Rd8 {[%clk 00:48:17]} {[%emt 00:16:32]} 26. Ke2 {[%clk 00:53:48]}
{[%emt 00:03:10]} Kg6 {[%clk 00:46:30]} {[%emt 00:02:17]} 27. b3 {[%clk
00:53:07]} {[%emt 00:01:11]} Bd4 {[%clk 00:44:39]} {[%emt 00:02:21]} 28. Rd1
{[%clk 00:49:34]} {[%emt 00:04:03]} Re8 {[%clk 00:42:31]} {[%emt 00:02:38]} 29.
Kd3 {[%clk 00:46:56]} {[%emt 00:03:08]} Bxe3 {[%clk 00:41:01]} {[%emt
00:02:00]} 30. fxe3 {[%clk 00:47:21]} {[%emt 00:00:04]} Kf5 {[%clk 00:40:41]}
{[%emt 00:00:50]} 31. Rf1+ {[%clk 00:46:55]} {[%emt 00:00:56]} Ke5 {[%clk
00:39:26]} {[%emt 00:01:45]} 32. Rf4 {[%clk 00:46:52]} {[%emt 00:00:34]} f5
{[%clk 00:38:15]} {[%emt 00:01:41]} 33. Ra4 {[%clk 00:47:02]} {[%emt 00:00:19]}
Re7 {[%clk 00:37:49]} {[%emt 00:00:57]} 34. Ra6 {[%clk 00:45:39]} {[%emt
00:01:53]} c4+ {[%clk 00:34:09]} {[%emt 00:04:09]} 35. bxc4 {[%clk 00:39:00]}
{[%emt 00:07:09]} dxc4+ {[%clk 00:34:24]} {[%emt 00:00:15]} 36. Kxc4 {[%clk
00:39:26]} {[%emt 00:00:04]} Ke4 {[%clk 00:34:35]} {[%emt 00:00:19]} 37. g3
{[%clk 00:31:14]} {[%emt 00:08:42]} Rc7+ {[%clk 00:31:24]} {[%emt 00:03:42]} 38.
Kb3 {[%clk 00:31:31]} {[%emt 00:00:13]} Rb7+ {[%clk 00:31:41]} {[%emt
00:00:12]} 39. Kc3 {[%clk 00:31:37]} {[%emt 00:00:24]} Kxe3 {[%clk 00:30:27]}
{[%emt 00:01:44]} 40. Rf6 {[%clk 00:28:39]} {[%emt 00:03:27]} Rc7+ {[%clk
00:28:59]} {[%emt 00:01:59]} 41. Kb2 {[%clk 00:27:03]} {[%emt 00:02:07]} Kd2
{[%clk 00:27:40]} {[%emt 00:01:49]} 42. Rxh6 {[%clk 00:25:39]} {[%emt
00:01:53]} Rb7+ {[%clk 00:27:08]} {[%emt 00:01:02]} 43. Ka2 {[%clk 00:26:04]}
{[%emt 00:00:05]} Kxc2 {[%clk 00:24:48]} {[%emt 00:02:50]} 44. Rc6 {[%clk
00:26:30]} {[%emt 00:00:04]} Kd3 {[%clk 00:25:04]} {[%emt 00:00:14]} 45. h4
{[%clk 00:26:27]} {[%emt 00:00:32]} Ke4 {[%clk 00:24:46]} {[%emt 00:00:48]} 46.
h5 {[%clk 00:25:44]} {[%emt 00:01:13]} Ke5 {[%clk 00:23:18]} {[%emt 00:01:58]}
47. Ra6 {[%clk 00:19:51]} {[%emt 00:06:24]} f6 {[%clk 00:21:57]} {[%emt
00:01:51]} 48. Ra5+ {[%clk 00:17:04]} {[%emt 00:03:17]} Ke4 {[%clk 00:21:14]}
{[%emt 00:01:12]} 49. Ra4+ {[%clk 00:16:58]} {[%emt 00:00:36]} Ke5 {[%clk
00:20:06]} {[%emt 00:01:38]} 50. Rh4 {[%clk 00:14:46]} {[%emt 00:02:42]} Ke6
{[%clk 00:19:25]} {[%emt 00:01:11]} 51. a4 {[%clk 00:15:01]} {[%emt 00:00:15]}
Rg7 {[%clk 00:18:12]} {[%emt 00:01:42]} 52. Rh3 {[%clk 00:08:55]} {[%emt
00:06:36]} Kf7 {[%clk 00:15:22]} {[%emt 00:03:20]} 53. Kb3 {[%clk 00:05:56]}
{[%emt 00:03:30]} Rg4 {[%clk 00:13:29]} {[%emt 00:02:22]} 54. h6 {[%clk
00:05:43]} {[%emt 00:00:44]} Kg8 {[%clk 00:11:42]} {[%emt 00:02:16]} 55. h7+
{[%clk 00:05:46]} {[%emt 00:00:27]} Kh8 {[%clk 00:12:09]} {[%emt 00:00:04]} 56.
a5 {[%clk 00:04:43]} {[%emt 00:01:33]} f4 {[%clk 00:07:17]} {[%emt 00:05:22]}
57. gxf4 {[%clk 00:05:09]} {[%emt 00:00:04]} Rxf4 {[%clk 00:07:43]} {[%emt
00:00:04]} 58. Rh6 {[%clk 00:05:10]} {[%emt 00:00:29]} Rf5 {[%clk 00:07:18]}
{[%emt 00:00:55]} 59. a6 {[%clk 00:05:04]} {[%emt 00:00:36]} Rb5+ {[%clk
00:06:55]} {[%emt 00:00:53]} 60. Ka4 {[%clk 00:05:26]} {[%emt 00:00:08]} Rb6
{[%clk 00:07:21]} {[%emt 00:00:05]} 61. Ka5 {[%clk 00:05:48]} {[%emt 00:00:08]}
Re6 {[%clk 00:07:01]} {[%emt 00:00:49]} 62. Kb5 {[%clk 00:05:39]} {[%emt
00:00:40]} Rb6+ {[%clk 00:07:24]} {[%emt 00:00:08]} 63. Ka5 {[%clk 00:06:05]}
{[%emt 00:00:04]} Re6 {[%clk 00:07:50]} {[%emt 00:00:03]} 64. Kb5 {[%clk
00:04:32]} {[%emt 00:02:02]} Rb6+ {[%clk 00:08:13]} {[%emt 00:00:07]} 65. Ka5
{[%clk 00:04:58]} {[%emt 00:00:04]} Re6 {[%clk 00:08:40]} {[%emt 00:00:03]} 66.
Kb5 {[%emt 00:00:07]} 1/2-1/2

[Event "IIe Tournoi de GMI du C'Chartres Echecs"]
[Site "Chartres, France"]
[Date "2021.05.20"]
[Round "8.5"]
[White "Milliet, Sophie"]
[Black "David, Alberto"]
[Result "1/2-1/2"]
[TimeControl "5400+30"]
[WhiteTitle "IM"]
[BlackTitle "GM"]
[WhiteElo "2390"]
[BlackElo "2517"]

1. e4 {[%clk 01:27:43]} {[%emt 00:03:17]} c5 {[%clk 01:30:50]} {[%emt
00:00:10]} 2. Nf3 {[%clk 01:28:04]} {[%emt 00:00:09]} e6 {[%clk 01:31:07]}
{[%emt 00:00:13]} 3. d4 {[%clk 01:28:26]} {[%emt 00:00:08]} cxd4 {[%clk
01:31:31]} {[%emt 00:00:05]} 4. Nxd4 {[%clk 01:28:54]} {[%emt 00:00:03]} Nc6
{[%clk 01:31:47]} {[%emt 00:00:13]} 5. Nc3 {[%clk 01:29:17]} {[%emt 00:00:08]}
a6 {[%clk 01:32:06]} {[%emt 00:00:11]} 6. Nxc6 {[%clk 01:29:09]} {[%emt
00:00:38]} bxc6 {[%clk 01:32:30]} {[%emt 00:00:06]} 7. Bd3 {[%clk 01:29:19]}
{[%emt 00:00:21]} d5 {[%clk 01:32:17]} {[%emt 00:00:43]} 8. O-O {[%clk
01:27:56]} {[%emt 00:01:52]} Nf6 {[%clk 01:31:49]} {[%emt 00:00:58]} 9. Qf3
{[%clk 01:27:17]} {[%emt 00:01:09]} Bb7 {[%clk 01:26:31]} {[%emt 00:05:48]} 10.
Qg3 {[%clk 01:20:15]} {[%emt 00:07:33]} g6 {[%clk 01:04:30]} {[%emt 00:22:30]}
11. Re1 {[%clk 01:12:14]} {[%emt 00:08:32]} Nh5 {[%clk 00:51:25]} {[%emt
00:13:34]} 12. Qg4 {[%clk 01:09:55]} {[%emt 00:02:49]} d4 {[%clk 00:49:51]}
{[%emt 00:02:04]} 13. Nb1 {[%clk 01:08:24]} {[%emt 00:02:02]} e5 {[%clk
00:48:12]} {[%emt 00:02:09]} 14. Bg5 {[%clk 00:58:08]} {[%emt 00:10:45]} Be7
{[%clk 00:45:43]} {[%emt 00:02:58]} 15. Bh6 {[%clk 00:56:04]} {[%emt 00:02:34]}
Bf8 {[%clk 00:44:56]} {[%emt 00:01:17]} 16. Bg5 {[%clk 00:56:20]} {[%emt
00:00:14]} Be7 {[%clk 00:45:21]} {[%emt 00:00:05]} 17. Bh6 {[%clk 00:56:46]}
{[%emt 00:00:04]} Bf8 {[%clk 00:45:47]} {[%emt 00:00:03]} 1/2-1/2

[Event "IIe Tournoi de GMI du C'Chartres Echecs"]
[Site "Chartres, France"]
[Date "2021.05.21"]
[Round "9.1"]
[White "Stephan, Victor"]
[Black "Dgebuadze, Alexandre"]
[Result "1/2-1/2"]
[TimeControl "5400+30"]
[WhiteTitle "IM"]
[BlackTitle "GM"]
[WhiteElo "2430"]
[BlackElo "2490"]

1. d4 {[%clk 01:30:56]} {[%emt 00:00:03]} e6 {[%clk 01:30:25]} {[%emt
00:00:35]} 2. Nf3 {[%clk 01:30:25]} {[%emt 00:01:00]} Nf6 {[%clk 01:30:49]}
{[%emt 00:00:06]} 3. Bg5 {[%clk 01:30:17]} {[%emt 00:00:38]} h6 {[%clk
01:31:10]} {[%emt 00:00:09]} 4. Bh4 {[%clk 01:30:23]} {[%emt 00:00:25]} b6
{[%clk 01:31:19]} {[%emt 00:00:21]} 5. Nbd2 {[%clk 01:30:34]} {[%emt 00:00:18]}
Bb7 {[%clk 01:31:33]} {[%emt 00:00:17]} 6. e3 {[%clk 01:30:42]} {[%emt
00:00:22]} Be7 {[%clk 01:31:47]} {[%emt 00:00:16]} 7. c3 {[%clk 01:30:49]}
{[%emt 00:00:23]} Ne4 {[%clk 01:28:26]} {[%emt 00:03:51]} 8. Bxe7 {[%clk
01:25:36]} {[%emt 00:05:43]} Qxe7 {[%clk 01:28:50]} {[%emt 00:00:06]} 9. Nxe4
{[%clk 01:24:17]} {[%emt 00:01:49]} Bxe4 {[%clk 01:29:15]} {[%emt 00:00:06]} 10.
Nd2 {[%clk 01:24:16]} {[%emt 00:00:30]} Bb7 {[%clk 01:26:52]} {[%emt 00:02:53]}
11. Bd3 {[%clk 01:14:29]} {[%emt 00:10:17]} Qg5 {[%clk 01:24:39]} {[%emt
00:02:45]} 12. Qe2 {[%clk 01:12:24]} {[%emt 00:02:34]} d6 {[%clk 01:23:04]}
{[%emt 00:02:05]} 13. f4 {[%clk 01:08:23]} {[%emt 00:04:30]} Qxg2 {[%clk
01:21:14]} {[%emt 00:02:20]} 14. Qxg2 {[%clk 01:07:51]} {[%emt 00:01:02]} Bxg2
{[%clk 01:21:37]} {[%emt 00:00:06]} 15. Rg1 {[%clk 01:08:04]} {[%emt 00:00:18]}
Bb7 {[%clk 01:21:59]} {[%emt 00:00:09]} 16. Rxg7 {[%clk 01:08:17]} {[%emt
00:00:17]} Nd7 {[%clk 01:22:13]} {[%emt 00:00:16]} 17. Kf2 {[%clk 01:05:12]}
{[%emt 00:03:36]} Nf6 {[%clk 01:19:12]} {[%emt 00:03:32]} 18. Rag1 {[%clk
01:03:38]} {[%emt 00:02:03]} Nh5 {[%clk 01:17:27]} {[%emt 00:02:14]} 19. R7g4
{[%clk 01:00:45]} {[%emt 00:03:24]} Nf6 {[%clk 01:16:46]} {[%emt 00:01:10]} 20.
Rh4 {[%clk 00:54:35]} {[%emt 00:06:41]} Ke7 {[%clk 01:13:44]} {[%emt 00:03:32]}
21. Rg3 {[%clk 00:54:06]} {[%emt 00:00:59]} Rag8 {[%clk 01:13:23]} {[%emt
00:00:51]} 22. Be2 {[%clk 00:54:05]} {[%emt 00:00:31]} Rg6 {[%clk 01:06:05]}
{[%emt 00:07:48]} 23. Bd3 {[%clk 00:46:21]} {[%emt 00:08:14]} Rgg8 {[%clk
01:06:25]} {[%emt 00:00:08]} 24. Be2 {[%clk 00:46:46]} {[%emt 00:00:06]} Rg6
{[%clk 01:06:51]} {[%emt 00:00:04]} 25. Bd3 {[%clk 00:47:13]} {[%emt 00:00:03]}
1/2-1/2

[Event "IIe Tournoi de GMI du C'Chartres Echecs"]
[Site "Chartres, France"]
[Date "2021.05.21"]
[Round "9.2"]
[White "Flear, Glenn"]
[Black "Milliet, Sophie"]
[Result "1/2-1/2"]
[TimeControl "5400+30"]
[WhiteTitle "GM"]
[BlackTitle "IM"]
[WhiteElo "2431"]
[BlackElo "2390"]

1. d4 {[%clk 01:30:56]} {[%emt 00:00:03]} Nf6 {[%clk 01:30:56]} {[%emt
00:00:05]} 2. c4 {[%clk 01:31:16]} {[%emt 00:00:10]} c5 {[%clk 01:31:18]}
{[%emt 00:00:08]} 3. d5 {[%clk 01:31:13]} {[%emt 00:00:32]} b5 {[%clk
01:31:36]} {[%emt 00:00:13]} 4. cxb5 {[%clk 01:29:51]} {[%emt 00:01:52]} a6
{[%clk 01:32:00]} {[%emt 00:00:06]} 5. bxa6 {[%clk 01:28:34]} {[%emt 00:01:47]}
g6 {[%clk 01:32:23]} {[%emt 00:00:07]} 6. Nc3 {[%clk 01:28:27]} {[%emt
00:00:37]} Bxa6 {[%clk 01:32:27]} {[%emt 00:00:26]} 7. e4 {[%clk 01:27:53]}
{[%emt 00:01:03]} Bxf1 {[%clk 01:32:48]} {[%emt 00:00:10]} 8. Kxf1 {[%clk
01:28:15]} {[%emt 00:00:08]} d6 {[%clk 01:33:11]} {[%emt 00:00:08]} 9. Nf3
{[%clk 01:28:08]} {[%emt 00:00:36]} Bg7 {[%clk 01:33:29]} {[%emt 00:00:12]} 10.
g3 {[%clk 01:27:58]} {[%emt 00:00:39]} O-O {[%clk 01:33:37]} {[%emt 00:00:23]}
11. Kg2 {[%clk 01:28:21]} {[%emt 00:00:07]} Nbd7 {[%clk 01:33:32]} {[%emt
00:00:36]} 12. a4 {[%clk 01:22:05]} {[%emt 00:06:45]} Ra6 {[%clk 01:31:18]}
{[%emt 00:02:44]} 13. Qc2 {[%clk 01:17:47]} {[%emt 00:04:48]} Qa8 {[%clk
01:31:14]} {[%emt 00:00:34]} 14. Re1 {[%clk 01:12:55]} {[%emt 00:05:22]} Rc8
{[%clk 01:28:46]} {[%emt 00:02:59]} 15. Ra3 {[%clk 01:09:56]} {[%emt 00:03:30]}
1/2-1/2

[Event "IIe Tournoi de GMI du C'Chartres Echecs"]
[Site "Chartres, France"]
[Date "2021.05.21"]
[Round "9.4"]
[White "Loiseau, Quentin"]
[Black "Vlachos, Anatole"]
[Result "1/2-1/2"]
[TimeControl "5400+30"]
[WhiteTitle "IM"]
[BlackTitle "IM"]
[WhiteElo "2455"]
[BlackElo "2438"]

1. d4 {[%clk 01:30:54]} {[%emt 00:00:05]} d5 {[%clk 01:30:56]} {[%emt
00:00:05]} 2. c4 {[%clk 01:30:55]} {[%emt 00:00:29]} e6 {[%clk 01:31:24]}
{[%emt 00:00:03]} 3. Nf3 {[%clk 01:31:17]} {[%emt 00:00:07]} Nf6 {[%clk
01:31:50]} {[%emt 00:00:05]} 4. g3 {[%clk 01:31:18]} {[%emt 00:00:30]} Be7
{[%clk 01:32:15]} {[%emt 00:00:05]} 5. Bg2 {[%clk 01:31:41]} {[%emt 00:00:06]}
O-O {[%clk 01:32:40]} {[%emt 00:00:05]} 6. Nc3 {[%clk 01:32:00]} {[%emt
00:00:11]} dxc4 {[%clk 01:32:58]} {[%emt 00:00:13]} 7. Ne5 {[%clk 01:32:23]}
{[%emt 00:00:06]} Nc6 {[%clk 01:33:23]} {[%emt 00:00:05]} 8. Bxc6 {[%clk
01:32:46]} {[%emt 00:00:08]} bxc6 {[%clk 01:33:51]} {[%emt 00:00:02]} 9. Nxc6
{[%clk 01:33:08]} {[%emt 00:00:07]} Qe8 {[%clk 01:34:19]} {[%emt 00:00:03]} 10.
Nxe7+ {[%clk 01:33:29]} {[%emt 00:00:09]} Qxe7 {[%clk 01:34:45]} {[%emt
00:00:02]} 11. Qa4 {[%clk 01:33:45]} {[%emt 00:00:14]} Nd5 {[%clk 01:35:11]}
{[%emt 00:00:04]} 12. Qxc4 {[%clk 01:25:07]} {[%emt 00:09:10]} 1/2-1/2